{"text_format":"3","workbook":"xlsx","n_sheets":4,"sheets":["Začetek","PARAMETRI PROJEKTA","PODROBNOSTI PROJEKTA","SKUPNE VRENDOSTI PROJEKTA"],"not_rendered":{"charts":2,"defined_names":3,"pivot_tables":1},"read":"whole","date_system":"1900"}

{"sheet":"Začetek","index":0,"n_rows":8,"n_cols":2,"rows_kept":8}
[null,"O TEJ PREDLOGI"]
[]
[null,"S tem delovnim zvezkom lahko spremljate parametri projekta, podrobnosti projekta in skupne vrendosti projekta med načrtovanje projekta za pravna podjetja."]
[null,"Vnesite ime podjetja na delovni list »Parametri projekta«, ime pa bo samodejno vneseno na druge delovne liste."]
[null,"Vnesite informacije v delovni zvezek »Parametri projekta«, da posodobite stolpčne grafikone, in v delovni zvezek »Podrobnosti projekta«. Vrtilna tabela na delovnem listu »skupne vrendosti projekta« je samodejno posodobljena."]
[null,"Opomba:  "]
[null,"Dodatna navodila so na voljo v stolpcu A na vsakem delovnem listu. To besedilo je bilo skrito namenoma. Če želite besedilo premakniti, izberite stolpec A, nato izberite še IZBRIŠI. Če želite besedilo razkriti, izberite stolpec A, nato zamenjajte barvo pisave."]
[null,"Če želite izvedeti več o tabelah na delovnem list, znotraj tabele pritisnite SHIFT in F10, izberite možnost TABELA, nato pa izberite NADOMESTNO BESEDILO. Za vrtilne tabele na delovnem listu »Skupne vrednosti projekta« pritisnite SHIFT, nato v tabeli pritisnite F10, izberite MOŽNOSTI VRTILNIH TABEL, nato pa izberite zavihek NADOMESTNO BESEDILO."]

{"sheet":"PARAMETRI PROJEKTA","index":1,"n_rows":19,"n_cols":9,"rows_kept":19}
["Na tem delovnim listu lahko ustvarite parametri projekta. Ime podjetja vnesite v celico na desni. Navodila so v celicah v tem stolpcu.","Ime podjetja"]
["Naslov tega delovnega lista je v celici na desni strani.","Načrtovanje projekta za pravna podjetja"]
["Sporočilo o zaupnosti je v celici na desni.",{"$f":"B1&\" – zaupno\"","v":"Ime podjetja – zaupno"}]
["Namig je v celici na desni.","Vrednosti v senčenih celicah so izračunane namesto vas. V te celice vam ni treba vnašati ničesar."]
["Vnesite podrobnosti v tabelo »Parametri«, ki se začne v celici na desni. Naslednje navodilo je v celici A12.","VRSTA PROJEKTA","SPLOŠNI PARTNER","ODVETNIK ZA PODJETJA","PRAVDAR OBRAMBE","ODVETNIK ZA INTELEKTUALNO LASTNINO","ODVETNIK ZA BANKROT","SKRBNIŠKO OSEBJE","Vsota"]
[null,"Ustvarjanje novega podjetja",{"v":0.1,"d":"10%"},{"v":0.4,"d":"40%"},{"v":0,"d":"0%"},{"v":0,"d":"0%"},{"v":0,"d":"0%"},{"v":0.5,"d":"50%"},{"$f":"SUM(Parametri[[#This Row],[SPLOŠNI PARTNER]:[SKRBNIŠKO OSEBJE]])","v":{"v":1,"d":"100%"}}]
[null,"Poslovne pridobitve",{"v":0.1,"d":"10%"},{"v":0.4,"d":"40%"},{"v":0,"d":"0%"},{"v":0.1,"d":"10%"},{"v":0,"d":"0%"},{"v":0.4,"d":"40%"},{"$f":"SUM(Parametri[[#This Row],[SPLOŠNI PARTNER]:[SKRBNIŠKO OSEBJE]])","v":{"v":1,"d":"100%"}}]
[null,"Obramba pred odgovornostjo za izdelek",{"v":0.2,"d":"20%"},{"v":0,"d":"0%"},{"v":0.5,"d":"50%"},{"v":0,"d":"0%"},{"v":0,"d":"0%"},{"v":0.3,"d":"30%"},{"$f":"SUM(Parametri[[#This Row],[SPLOŠNI PARTNER]:[SKRBNIŠKO OSEBJE]])","v":{"v":1,"d":"100%"}}]
[null,"Prijava patenta",{"v":0.1,"d":"10%"},{"v":0,"d":"0%"},{"v":0,"d":"0%"},{"v":0.6,"d":"60%"},{"v":0,"d":"0%"},{"v":0.3,"d":"30%"},{"$f":"SUM(Parametri[[#This Row],[SPLOŠNI PARTNER]:[SKRBNIŠKO OSEBJE]])","v":{"v":1,"d":"100%"}}]
[null,"Tožba zaposlenega",{"v":0.2,"d":"20%"},{"v":0.1,"d":"10%"},{"v":0.4,"d":"40%"},{"v":0,"d":"0%"},{"v":0,"d":"0%"},{"v":0.3,"d":"30%"},{"$f":"SUM(Parametri[[#This Row],[SPLOŠNI PARTNER]:[SKRBNIŠKO OSEBJE]])","v":{"v":1,"d":"100%"}}]
[null,"Bankrot",{"v":0.1,"d":"10%"},{"v":0.2,"d":"20%"},{"v":0,"d":"0%"},{"v":0,"d":"0%"},{"v":0.4,"d":"40%"},{"v":0.3,"d":"30%"},{"$f":"SUM(Parametri[[#This Row],[SPLOŠNI PARTNER]:[SKRBNIŠKO OSEBJE]])","v":{"v":1,"d":"100%"}}]
["Vnesite mešane tarife v celice na desni, od celice C12 do celice H12. Naslednji korak je v celici A14.","Mešane tarife",{"v":350,"d":"350 €"},{"v":250,"d":"250 €"},{"v":300,"d":"300 €"},{"v":275,"d":"275 €"},{"v":225,"d":"225 €"},{"v":125,"d":"125 €"}]
[]
["Stolpčni grafikon s primerjavo med načrtovani in dejanski stroški je v celici na desni, stolpčni grafikon, ki prikazuje primerjavo med načrtovane in dejanske ure, pa je v celici F14."]
[null,null,"SPLOŠNI PARTNER","PODJETJE","PRAVDAR OBRAMBE","INTELEKTUALNA LASTNINA","BANKROT","SKRBNIŠKO OSEBJE"]
[null,"NAČRTOVANI STROŠKI",{"$f":"SUBTOTAL(109,Podrobnosti[SPLOŠNI PARTNER])","v":{"v":78750,"d":"78,750.00 €"}},{"$f":"SUBTOTAL(109,Podrobnosti[ODVETNIK ZA PODJETJA])","v":{"v":66250,"d":"66,250.00 €"}},{"$f":"SUBTOTAL(109,Podrobnosti[PRAVDAR OBRAMBE])","v":{"v":105000,"d":"105,000.00 €"}},{"$f":"SUBTOTAL(109,Podrobnosti[ODVETNIK ZA INTELEKTUALNO LASTNINO])","v":{"v":35750,"d":"35,750.00 €"}},{"$f":"SUBTOTAL(109,Podrobnosti[ODVETNIK ZA BANKROT])","v":{"v":0,"d":"0.00 €"}},{"$f":"SUBTOTAL(109,Podrobnosti[SKRBNIŠKO OSEBJE])","v":{"v":66250,"d":"66,250.00 €"}}]
[null,"DEJANSKI STROŠKI",{"$f":"SUBTOTAL(109,Podrobnosti[SPLOŠNI PARTNER 2])","v":{"v":79275,"d":"79,275.00 €"}},{"$f":"SUBTOTAL(109,Podrobnosti[ODVETNIK ZA PODJETJA 2])","v":{"v":67375,"d":"67,375.00 €"}},{"$f":"SUBTOTAL(109,Podrobnosti[PRAVDAR OBRAMBE 2])","v":{"v":105600,"d":"105,600.00 €"}},{"$f":"SUBTOTAL(109,Podrobnosti[ODVETNIK ZA INTELEKTUALNO LASTNINO 2])","v":{"v":34650,"d":"34,650.00 €"}},{"$f":"SUBTOTAL(109,Podrobnosti[ODVETNIK ZA BANKROT 2])","v":{"v":0,"d":"0.00 €"}},{"$f":"SUBTOTAL(109,Podrobnosti[SKRBNIŠKO OSEBJE 2])","v":{"v":67000,"d":"67,000.00 €"}}]
[null,"NAČRTOVANE URE",{"$f":"C16/$C$12","v":{"v":225,"d":"225.00"}},{"$f":"D16/$C$12","v":{"v":189.28571428571428,"d":"189.29"}},{"v":300,"d":"300.00"},{"v":102.14285714285714,"d":"102.14"},{"v":0,"d":"0.00"},{"v":189.28571428571428,"d":"189.29"}]
[null,"DEJANSKE URE",{"$f":"C17/$C$12","v":{"v":226.5,"d":"226.50"}},{"$f":"D17/$C$12","v":{"v":192.5,"d":"192.50"}},{"$f":"E17/$C$12","v":{"v":301.7142857142857,"d":"301.71"}},{"$f":"F17/$C$12","v":{"v":99,"d":"99.00"}},{"$f":"G17/$C$12","v":{"v":0,"d":"0.00"}},{"$f":"H17/$C$12","v":{"v":191.42857142857142,"d":"191.43"}}]

{"sheet":"PODROBNOSTI PROJEKTA","index":2,"n_rows":10,"n_cols":25,"rows_kept":10,"merged":[[1,24,8,28]]}
["Na tem delovnim listu lahko ustvarite podrobnosti projekta. Ime podjetja se samodejno posodobi v celici na desni strani. Navodila so v celicah v tem stolpcu. Puščica dol za začetek dela.",{"$f":"'PARAMETRI PROJEKTA'!B1","v":"Ime podjetja"}]
["Naslov tega delovnega lista je v celici na desni, navodila pa so v celici Y2.",{"$f":"'PARAMETRI PROJEKTA'!B2","v":"Načrtovanje projekta za pravna podjetja"},{"$nulls":22},"INFORMACIJE:\nČe želite dodati vrstico, izberite celico spodaj desno v telesu tabele (ne v vrstici s skupnimi vrednostmi) in pritisnite tabulatorko ali pa pritisnite SHIFT in nato F10 znotraj tabele, v kateri želite vstaviti vrstico, in izberite »Vstavi | Vrstice tabele zgoraj/spodaj«.\nPoskrbite, da bodo vse neuporabljene vrstice izbrisane, saj bo funkcija »SKUPNE VREDNOSTI PROJEKTA vrtilne tabele« uporabila vse celice tabele, kar bi pomenilo napačne rezultate."]
["Sporočilo o zaupnosti je v celici na desni.",{"$f":"'PARAMETRI PROJEKTA'!B3","v":"Ime podjetja – zaupno"}]
["Vnesite informacije v tabelo »Podrobnosti« z začetkom v celici na desni. Vrsta projekta v tabeli »Podrobnosti« so samodejno posodobljene iz tabele »Parametri« na delovnem listu »Parametri projekta«.","IME PROJEKTA","VRSTA PROJEKTA","PREDVIDEN ZAČETEK","PREDVIDEN ZAKLJUČEK","DEJANSKI ZAČETEK","DEJANSKI ZAKLJUČEK","PREDVIDENO DELO","DEJANSKO DELO","PREDVIDENO TRAJANJE","DEJANSKO TRAJANJE","SPLOŠNI PARTNER","ODVETNIK ZA PODJETJA","PRAVDAR OBRAMBE","ODVETNIK ZA INTELEKTUALNO LASTNINO","ODVETNIK ZA BANKROT","SKRBNIŠKO OSEBJE","SPLOŠNI PARTNER 2","ODVETNIK ZA PODJETJA 2","PRAVDAR OBRAMBE 2","ODVETNIK ZA INTELEKTUALNO LASTNINO 2","ODVETNIK ZA BANKROT 2","SKRBNIŠKO OSEBJE 2"]
[null,"Projekt 1","Ustvarjanje novega podjetja",{"$f":"TODAY()","v":"2019-02-19"},{"$f":"TODAY()+60","v":"2019-04-20"},{"$f":"TODAY()+10","v":"2019-03-01"},{"$f":"TODAY()+65","v":"2019-04-25"},200,220,{"$f":"DAYS360(Podrobnosti[[#This Row],[PREDVIDEN ZAČETEK]],Podrobnosti[[#This Row],[PREDVIDEN ZAKLJUČEK]],FALSE)","v":61},{"$f":"DAYS360(Podrobnosti[[#This Row],[DEJANSKI ZAČETEK]],Podrobnosti[[#This Row],[DEJANSKI ZAKLJUČEK]],FALSE)","v":54},{"$f":"INDEX(Parametri[],MATCH(Podrobnosti[[#This Row],[VRSTA PROJEKTA]],Parametri[VRSTA PROJEKTA],0),MATCH(Podrobnosti[[#Headers],[SPLOŠNI PARTNER]],Parametri[#Headers],0))*INDEX('PARAMETRI PROJEKTA'!$B$12:$H$12,1,MATCH(Podrobnosti[[#Headers],[SPLOŠNI PARTNER]],Parametri[#Headers],0))*Podrobnosti[[#This Row],[PREDVIDENO DELO]]","v":{"v":7000,"d":"7,000 €"}},{"$f":"INDEX(Parametri[],MATCH(Podrobnosti[[#This Row],[VRSTA PROJEKTA]],Parametri[VRSTA PROJEKTA],0),MATCH(Podrobnosti[[#Headers],[ODVETNIK ZA PODJETJA]],Parametri[#Headers],0))*INDEX('PARAMETRI PROJEKTA'!$B$12:$H$12,1,MATCH(Podrobnosti[[#Headers],[ODVETNIK ZA PODJETJA]],Parametri[#Headers],0))*Podrobnosti[[#This Row],[PREDVIDENO DELO]]","v":{"v":20000,"d":"20,000 €"}},{"$f":"INDEX(Parametri[],MATCH(Podrobnosti[[#This Row],[VRSTA PROJEKTA]],Parametri[VRSTA PROJEKTA],0),MATCH(Podrobnosti[[#Headers],[PRAVDAR OBRAMBE]],Parametri[#Headers],0))*INDEX('PARAMETRI PROJEKTA'!$B$12:$H$12,1,MATCH(Podrobnosti[[#Headers],[PRAVDAR OBRAMBE]],Parametri[#Headers],0))*Podrobnosti[[#This Row],[PREDVIDENO DELO]]","v":{"v":0,"d":"0 €"}},{"$f":"INDEX(Parametri[],MATCH(Podrobnosti[[#This Row],[VRSTA PROJEKTA]],Parametri[VRSTA PROJEKTA],0),MATCH(Podrobnosti[[#Headers],[ODVETNIK ZA INTELEKTUALNO LASTNINO]],Parametri[#Headers],0))*INDEX('PARAMETRI PROJEKTA'!$B$12:$H$12,1,MATCH(Podrobnosti[[#Headers],[ODVETNIK ZA INTELEKTUALNO LASTNINO]],Parametri[#Headers],0))*Podrobnosti[[#This Row],[PREDVIDENO DELO]]","v":{"v":0,"d":"0 €"}},{"$f":"INDEX(Parametri[],MATCH(Podrobnosti[[#This Row],[VRSTA PROJEKTA]],Parametri[VRSTA PROJEKTA],0),MATCH(Podrobnosti[[#Headers],[ODVETNIK ZA BANKROT]],Parametri[#Headers],0))*INDEX('PARAMETRI PROJEKTA'!$B$12:$H$12,1,MATCH(Podrobnosti[[#Headers],[ODVETNIK ZA BANKROT]],Parametri[#Headers],0))*Podrobnosti[[#This Row],[PREDVIDENO DELO]]","v":{"v":0,"d":"0 €"}},{"$f":"INDEX(Parametri[],MATCH(Podrobnosti[[#This Row],[VRSTA PROJEKTA]],Parametri[VRSTA PROJEKTA],0),MATCH(Podrobnosti[[#Headers],[SKRBNIŠKO OSEBJE]],Parametri[#Headers],0))*INDEX('PARAMETRI PROJEKTA'!$B$12:$H$12,1,MATCH(Podrobnosti[[#Headers],[SKRBNIŠKO OSEBJE]],Parametri[#Headers],0))*Podrobnosti[[#This Row],[PREDVIDENO DELO]]","v":{"v":12500,"d":"12,500 €"}},{"$f":"INDEX(Parametri[],MATCH(Podrobnosti[[#This Row],[VRSTA PROJEKTA]],Parametri[VRSTA PROJEKTA],0),MATCH(Podrobnosti[[#Headers],[SPLOŠNI PARTNER]],Parametri[#Headers],0))*INDEX('PARAMETRI PROJEKTA'!$B$12:$H$12,1,MATCH(Podrobnosti[[#Headers],[SPLOŠNI PARTNER]],Parametri[#Headers],0))*Podrobnosti[[#This Row],[DEJANSKO DELO]]","v":{"v":7700,"d":"7,700 €"}},{"$f":"INDEX(Parametri[],MATCH(Podrobnosti[[#This Row],[VRSTA PROJEKTA]],Parametri[VRSTA PROJEKTA],0),MATCH(Podrobnosti[[#Headers],[ODVETNIK ZA PODJETJA]],Parametri[#Headers],0))*INDEX('PARAMETRI PROJEKTA'!$B$12:$H$12,1,MATCH(Podrobnosti[[#Headers],[ODVETNIK ZA PODJETJA]],Parametri[#Headers],0))*Podrobnosti[[#This Row],[DEJANSKO DELO]]","v":{"v":22000,"d":"22,000 €"}},{"$f":"INDEX(Parametri[],MATCH(Podrobnosti[[#This Row],[VRSTA PROJEKTA]],Parametri[VRSTA PROJEKTA],0),MATCH(Podrobnosti[[#Headers],[PRAVDAR OBRAMBE]],Parametri[#Headers],0))*INDEX('PARAMETRI PROJEKTA'!$B$12:$H$12,1,MATCH(Podrobnosti[[#Headers],[PRAVDAR OBRAMBE]],Parametri[#Headers],0))*Podrobnosti[[#This Row],[DEJANSKO DELO]]","v":{"v":0,"d":"0 €"}},{"$f":"INDEX(Parametri[],MATCH(Podrobnosti[[#This Row],[VRSTA PROJEKTA]],Parametri[VRSTA PROJEKTA],0),MATCH(Podrobnosti[[#Headers],[ODVETNIK ZA INTELEKTUALNO LASTNINO]],Parametri[#Headers],0))*INDEX('PARAMETRI PROJEKTA'!$B$12:$H$12,1,MATCH(Podrobnosti[[#Headers],[ODVETNIK ZA INTELEKTUALNO LASTNINO]],Parametri[#Headers],0))*Podrobnosti[[#This Row],[DEJANSKO DELO]]","v":{"v":0,"d":"0 €"}},{"$f":"INDEX(Parametri[],MATCH(Podrobnosti[[#This Row],[VRSTA PROJEKTA]],Parametri[VRSTA PROJEKTA],0),MATCH(Podrobnosti[[#Headers],[ODVETNIK ZA BANKROT]],Parametri[#Headers],0))*INDEX('PARAMETRI PROJEKTA'!$B$12:$H$12,1,MATCH(Podrobnosti[[#Headers],[ODVETNIK ZA BANKROT]],Parametri[#Headers],0))*Podrobnosti[[#This Row],[DEJANSKO DELO]]","v":{"v":0,"d":"0 €"}},{"$f":"INDEX(Parametri[],MATCH(Podrobnosti[[#This Row],[VRSTA PROJEKTA]],Parametri[VRSTA PROJEKTA],0),MATCH(Podrobnosti[[#Headers],[SKRBNIŠKO OSEBJE]],Parametri[#Headers],0))*INDEX('PARAMETRI PROJEKTA'!$B$12:$H$12,1,MATCH(Podrobnosti[[#Headers],[SKRBNIŠKO OSEBJE]],Parametri[#Headers],0))*Podrobnosti[[#This Row],[DEJANSKO DELO]]","v":{"v":13750,"d":"13,750 €"}}]
[null,"Projekt 2","Poslovne pridobitve",{"$f":"TODAY()+30","v":"2019-03-21"},{"$f":"TODAY()+100","v":"2019-05-30"},{"$f":"TODAY()+40","v":"2019-03-31"},{"$f":"TODAY()+110","v":"2019-06-09"},400,390,{"$f":"DAYS360(Podrobnosti[[#This Row],[PREDVIDEN ZAČETEK]],Podrobnosti[[#This Row],[PREDVIDEN ZAKLJUČEK]],FALSE)","v":69},{"$f":"DAYS360(Podrobnosti[[#This Row],[DEJANSKI ZAČETEK]],Podrobnosti[[#This Row],[DEJANSKI ZAKLJUČEK]],FALSE)","v":69},{"$f":"INDEX(Parametri[],MATCH(Podrobnosti[[#This Row],[VRSTA PROJEKTA]],Parametri[VRSTA PROJEKTA],0),MATCH(Podrobnosti[[#Headers],[SPLOŠNI PARTNER]],Parametri[#Headers],0))*INDEX('PARAMETRI PROJEKTA'!$B$12:$H$12,1,MATCH(Podrobnosti[[#Headers],[SPLOŠNI PARTNER]],Parametri[#Headers],0))*Podrobnosti[[#This Row],[PREDVIDENO DELO]]","v":{"v":14000,"d":"14,000 €"}},{"$f":"INDEX(Parametri[],MATCH(Podrobnosti[[#This Row],[VRSTA PROJEKTA]],Parametri[VRSTA PROJEKTA],0),MATCH(Podrobnosti[[#Headers],[ODVETNIK ZA PODJETJA]],Parametri[#Headers],0))*INDEX('PARAMETRI PROJEKTA'!$B$12:$H$12,1,MATCH(Podrobnosti[[#Headers],[ODVETNIK ZA PODJETJA]],Parametri[#Headers],0))*Podrobnosti[[#This Row],[PREDVIDENO DELO]]","v":{"v":40000,"d":"40,000 €"}},{"$f":"INDEX(Parametri[],MATCH(Podrobnosti[[#This Row],[VRSTA PROJEKTA]],Parametri[VRSTA PROJEKTA],0),MATCH(Podrobnosti[[#Headers],[PRAVDAR OBRAMBE]],Parametri[#Headers],0))*INDEX('PARAMETRI PROJEKTA'!$B$12:$H$12,1,MATCH(Podrobnosti[[#Headers],[PRAVDAR OBRAMBE]],Parametri[#Headers],0))*Podrobnosti[[#This Row],[PREDVIDENO DELO]]","v":{"v":0,"d":"0 €"}},{"$f":"INDEX(Parametri[],MATCH(Podrobnosti[[#This Row],[VRSTA PROJEKTA]],Parametri[VRSTA PROJEKTA],0),MATCH(Podrobnosti[[#Headers],[ODVETNIK ZA INTELEKTUALNO LASTNINO]],Parametri[#Headers],0))*INDEX('PARAMETRI PROJEKTA'!$B$12:$H$12,1,MATCH(Podrobnosti[[#Headers],[ODVETNIK ZA INTELEKTUALNO LASTNINO]],Parametri[#Headers],0))*Podrobnosti[[#This Row],[PREDVIDENO DELO]]","v":{"v":11000,"d":"11,000 €"}},{"$f":"INDEX(Parametri[],MATCH(Podrobnosti[[#This Row],[VRSTA PROJEKTA]],Parametri[VRSTA PROJEKTA],0),MATCH(Podrobnosti[[#Headers],[ODVETNIK ZA BANKROT]],Parametri[#Headers],0))*INDEX('PARAMETRI PROJEKTA'!$B$12:$H$12,1,MATCH(Podrobnosti[[#Headers],[ODVETNIK ZA BANKROT]],Parametri[#Headers],0))*Podrobnosti[[#This Row],[PREDVIDENO DELO]]","v":{"v":0,"d":"0 €"}},{"$f":"INDEX(Parametri[],MATCH(Podrobnosti[[#This Row],[VRSTA PROJEKTA]],Parametri[VRSTA PROJEKTA],0),MATCH(Podrobnosti[[#Headers],[SKRBNIŠKO OSEBJE]],Parametri[#Headers],0))*INDEX('PARAMETRI PROJEKTA'!$B$12:$H$12,1,MATCH(Podrobnosti[[#Headers],[SKRBNIŠKO OSEBJE]],Parametri[#Headers],0))*Podrobnosti[[#This Row],[PREDVIDENO DELO]]","v":{"v":20000,"d":"20,000 €"}},{"$f":"INDEX(Parametri[],MATCH(Podrobnosti[[#This Row],[VRSTA PROJEKTA]],Parametri[VRSTA PROJEKTA],0),MATCH(Podrobnosti[[#Headers],[SPLOŠNI PARTNER]],Parametri[#Headers],0))*INDEX('PARAMETRI PROJEKTA'!$B$12:$H$12,1,MATCH(Podrobnosti[[#Headers],[SPLOŠNI PARTNER]],Parametri[#Headers],0))*Podrobnosti[[#This Row],[DEJANSKO DELO]]","v":{"v":13650,"d":"13,650 €"}},{"$f":"INDEX(Parametri[],MATCH(Podrobnosti[[#This Row],[VRSTA PROJEKTA]],Parametri[VRSTA PROJEKTA],0),MATCH(Podrobnosti[[#Headers],[ODVETNIK ZA PODJETJA]],Parametri[#Headers],0))*INDEX('PARAMETRI PROJEKTA'!$B$12:$H$12,1,MATCH(Podrobnosti[[#Headers],[ODVETNIK ZA PODJETJA]],Parametri[#Headers],0))*Podrobnosti[[#This Row],[DEJANSKO DELO]]","v":{"v":39000,"d":"39,000 €"}},{"$f":"INDEX(Parametri[],MATCH(Podrobnosti[[#This Row],[VRSTA PROJEKTA]],Parametri[VRSTA PROJEKTA],0),MATCH(Podrobnosti[[#Headers],[PRAVDAR OBRAMBE]],Parametri[#Headers],0))*INDEX('PARAMETRI PROJEKTA'!$B$12:$H$12,1,MATCH(Podrobnosti[[#Headers],[PRAVDAR OBRAMBE]],Parametri[#Headers],0))*Podrobnosti[[#This Row],[DEJANSKO DELO]]","v":{"v":0,"d":"0 €"}},{"$f":"INDEX(Parametri[],MATCH(Podrobnosti[[#This Row],[VRSTA PROJEKTA]],Parametri[VRSTA PROJEKTA],0),MATCH(Podrobnosti[[#Headers],[ODVETNIK ZA INTELEKTUALNO LASTNINO]],Parametri[#Headers],0))*INDEX('PARAMETRI PROJEKTA'!$B$12:$H$12,1,MATCH(Podrobnosti[[#Headers],[ODVETNIK ZA INTELEKTUALNO LASTNINO]],Parametri[#Headers],0))*Podrobnosti[[#This Row],[DEJANSKO DELO]]","v":{"v":10725,"d":"10,725 €"}},{"$f":"INDEX(Parametri[],MATCH(Podrobnosti[[#This Row],[VRSTA PROJEKTA]],Parametri[VRSTA PROJEKTA],0),MATCH(Podrobnosti[[#Headers],[ODVETNIK ZA BANKROT]],Parametri[#Headers],0))*INDEX('PARAMETRI PROJEKTA'!$B$12:$H$12,1,MATCH(Podrobnosti[[#Headers],[ODVETNIK ZA BANKROT]],Parametri[#Headers],0))*Podrobnosti[[#This Row],[DEJANSKO DELO]]","v":{"v":0,"d":"0 €"}},{"$f":"INDEX(Parametri[],MATCH(Podrobnosti[[#This Row],[VRSTA PROJEKTA]],Parametri[VRSTA PROJEKTA],0),MATCH(Podrobnosti[[#Headers],[SKRBNIŠKO OSEBJE]],Parametri[#Headers],0))*INDEX('PARAMETRI PROJEKTA'!$B$12:$H$12,1,MATCH(Podrobnosti[[#Headers],[SKRBNIŠKO OSEBJE]],Parametri[#Headers],0))*Podrobnosti[[#This Row],[DEJANSKO DELO]]","v":{"v":19500,"d":"19,500 €"}}]
[null,"Projekt 3","Obramba pred odgovornostjo za izdelek",{"$f":"TODAY()+150","v":"2019-07-19"},{"$f":"TODAY()+150","v":"2019-07-19"},{"$f":"TODAY()+150","v":"2019-07-19"},{"$f":"TODAY()+170","v":"2019-08-08"},500,500,{"$f":"DAYS360(Podrobnosti[[#This Row],[PREDVIDEN ZAČETEK]],Podrobnosti[[#This Row],[PREDVIDEN ZAKLJUČEK]],FALSE)","v":0},{"$f":"DAYS360(Podrobnosti[[#This Row],[DEJANSKI ZAČETEK]],Podrobnosti[[#This Row],[DEJANSKI ZAKLJUČEK]],FALSE)","v":19},{"$f":"INDEX(Parametri[],MATCH(Podrobnosti[[#This Row],[VRSTA PROJEKTA]],Parametri[VRSTA PROJEKTA],0),MATCH(Podrobnosti[[#Headers],[SPLOŠNI PARTNER]],Parametri[#Headers],0))*INDEX('PARAMETRI PROJEKTA'!$B$12:$H$12,1,MATCH(Podrobnosti[[#Headers],[SPLOŠNI PARTNER]],Parametri[#Headers],0))*Podrobnosti[[#This Row],[PREDVIDENO DELO]]","v":{"v":35000,"d":"35,000 €"}},{"$f":"INDEX(Parametri[],MATCH(Podrobnosti[[#This Row],[VRSTA PROJEKTA]],Parametri[VRSTA PROJEKTA],0),MATCH(Podrobnosti[[#Headers],[ODVETNIK ZA PODJETJA]],Parametri[#Headers],0))*INDEX('PARAMETRI PROJEKTA'!$B$12:$H$12,1,MATCH(Podrobnosti[[#Headers],[ODVETNIK ZA PODJETJA]],Parametri[#Headers],0))*Podrobnosti[[#This Row],[PREDVIDENO DELO]]","v":{"v":0,"d":"0 €"}},{"$f":"INDEX(Parametri[],MATCH(Podrobnosti[[#This Row],[VRSTA PROJEKTA]],Parametri[VRSTA PROJEKTA],0),MATCH(Podrobnosti[[#Headers],[PRAVDAR OBRAMBE]],Parametri[#Headers],0))*INDEX('PARAMETRI PROJEKTA'!$B$12:$H$12,1,MATCH(Podrobnosti[[#Headers],[PRAVDAR OBRAMBE]],Parametri[#Headers],0))*Podrobnosti[[#This Row],[PREDVIDENO DELO]]","v":{"v":75000,"d":"75,000 €"}},{"$f":"INDEX(Parametri[],MATCH(Podrobnosti[[#This Row],[VRSTA PROJEKTA]],Parametri[VRSTA PROJEKTA],0),MATCH(Podrobnosti[[#Headers],[ODVETNIK ZA INTELEKTUALNO LASTNINO]],Parametri[#Headers],0))*INDEX('PARAMETRI PROJEKTA'!$B$12:$H$12,1,MATCH(Podrobnosti[[#Headers],[ODVETNIK ZA INTELEKTUALNO LASTNINO]],Parametri[#Headers],0))*Podrobnosti[[#This Row],[PREDVIDENO DELO]]","v":{"v":0,"d":"0 €"}},{"$f":"INDEX(Parametri[],MATCH(Podrobnosti[[#This Row],[VRSTA PROJEKTA]],Parametri[VRSTA PROJEKTA],0),MATCH(Podrobnosti[[#Headers],[ODVETNIK ZA BANKROT]],Parametri[#Headers],0))*INDEX('PARAMETRI PROJEKTA'!$B$12:$H$12,1,MATCH(Podrobnosti[[#Headers],[ODVETNIK ZA BANKROT]],Parametri[#Headers],0))*Podrobnosti[[#This Row],[PREDVIDENO DELO]]","v":{"v":0,"d":"0 €"}},{"$f":"INDEX(Parametri[],MATCH(Podrobnosti[[#This Row],[VRSTA PROJEKTA]],Parametri[VRSTA PROJEKTA],0),MATCH(Podrobnosti[[#Headers],[SKRBNIŠKO OSEBJE]],Parametri[#Headers],0))*INDEX('PARAMETRI PROJEKTA'!$B$12:$H$12,1,MATCH(Podrobnosti[[#Headers],[SKRBNIŠKO OSEBJE]],Parametri[#Headers],0))*Podrobnosti[[#This Row],[PREDVIDENO DELO]]","v":{"v":18750,"d":"18,750 €"}},{"$f":"INDEX(Parametri[],MATCH(Podrobnosti[[#This Row],[VRSTA PROJEKTA]],Parametri[VRSTA PROJEKTA],0),MATCH(Podrobnosti[[#Headers],[SPLOŠNI PARTNER]],Parametri[#Headers],0))*INDEX('PARAMETRI PROJEKTA'!$B$12:$H$12,1,MATCH(Podrobnosti[[#Headers],[SPLOŠNI PARTNER]],Parametri[#Headers],0))*Podrobnosti[[#This Row],[DEJANSKO DELO]]","v":{"v":35000,"d":"35,000 €"}},{"$f":"INDEX(Parametri[],MATCH(Podrobnosti[[#This Row],[VRSTA PROJEKTA]],Parametri[VRSTA PROJEKTA],0),MATCH(Podrobnosti[[#Headers],[ODVETNIK ZA PODJETJA]],Parametri[#Headers],0))*INDEX('PARAMETRI PROJEKTA'!$B$12:$H$12,1,MATCH(Podrobnosti[[#Headers],[ODVETNIK ZA PODJETJA]],Parametri[#Headers],0))*Podrobnosti[[#This Row],[DEJANSKO DELO]]","v":{"v":0,"d":"0 €"}},{"$f":"INDEX(Parametri[],MATCH(Podrobnosti[[#This Row],[VRSTA PROJEKTA]],Parametri[VRSTA PROJEKTA],0),MATCH(Podrobnosti[[#Headers],[PRAVDAR OBRAMBE]],Parametri[#Headers],0))*INDEX('PARAMETRI PROJEKTA'!$B$12:$H$12,1,MATCH(Podrobnosti[[#Headers],[PRAVDAR OBRAMBE]],Parametri[#Headers],0))*Podrobnosti[[#This Row],[DEJANSKO DELO]]","v":{"v":75000,"d":"75,000 €"}},{"$f":"INDEX(Parametri[],MATCH(Podrobnosti[[#This Row],[VRSTA PROJEKTA]],Parametri[VRSTA PROJEKTA],0),MATCH(Podrobnosti[[#Headers],[ODVETNIK ZA INTELEKTUALNO LASTNINO]],Parametri[#Headers],0))*INDEX('PARAMETRI PROJEKTA'!$B$12:$H$12,1,MATCH(Podrobnosti[[#Headers],[ODVETNIK ZA INTELEKTUALNO LASTNINO]],Parametri[#Headers],0))*Podrobnosti[[#This Row],[DEJANSKO DELO]]","v":{"v":0,"d":"0 €"}},{"$f":"INDEX(Parametri[],MATCH(Podrobnosti[[#This Row],[VRSTA PROJEKTA]],Parametri[VRSTA PROJEKTA],0),MATCH(Podrobnosti[[#Headers],[ODVETNIK ZA BANKROT]],Parametri[#Headers],0))*INDEX('PARAMETRI PROJEKTA'!$B$12:$H$12,1,MATCH(Podrobnosti[[#Headers],[ODVETNIK ZA BANKROT]],Parametri[#Headers],0))*Podrobnosti[[#This Row],[DEJANSKO DELO]]","v":{"v":0,"d":"0 €"}},{"$f":"INDEX(Parametri[],MATCH(Podrobnosti[[#This Row],[VRSTA PROJEKTA]],Parametri[VRSTA PROJEKTA],0),MATCH(Podrobnosti[[#Headers],[SKRBNIŠKO OSEBJE]],Parametri[#Headers],0))*INDEX('PARAMETRI PROJEKTA'!$B$12:$H$12,1,MATCH(Podrobnosti[[#Headers],[SKRBNIŠKO OSEBJE]],Parametri[#Headers],0))*Podrobnosti[[#This Row],[DEJANSKO DELO]]","v":{"v":18750,"d":"18,750 €"}}]
[null,"Projekt 4","Prijava patenta",{"$f":"TODAY()+200","v":"2019-09-07"},{"$f":"TODAY()+230","v":"2019-10-07"},{"$f":"TODAY()+230","v":"2019-10-07"},{"$f":"TODAY()+230","v":"2019-10-07"},150,145,{"$f":"DAYS360(Podrobnosti[[#This Row],[PREDVIDEN ZAČETEK]],Podrobnosti[[#This Row],[PREDVIDEN ZAKLJUČEK]],FALSE)","v":30},{"$f":"DAYS360(Podrobnosti[[#This Row],[DEJANSKI ZAČETEK]],Podrobnosti[[#This Row],[DEJANSKI ZAKLJUČEK]],FALSE)","v":0},{"$f":"INDEX(Parametri[],MATCH(Podrobnosti[[#This Row],[VRSTA PROJEKTA]],Parametri[VRSTA PROJEKTA],0),MATCH(Podrobnosti[[#Headers],[SPLOŠNI PARTNER]],Parametri[#Headers],0))*INDEX('PARAMETRI PROJEKTA'!$B$12:$H$12,1,MATCH(Podrobnosti[[#Headers],[SPLOŠNI PARTNER]],Parametri[#Headers],0))*Podrobnosti[[#This Row],[PREDVIDENO DELO]]","v":{"v":5250,"d":"5,250 €"}},{"$f":"INDEX(Parametri[],MATCH(Podrobnosti[[#This Row],[VRSTA PROJEKTA]],Parametri[VRSTA PROJEKTA],0),MATCH(Podrobnosti[[#Headers],[ODVETNIK ZA PODJETJA]],Parametri[#Headers],0))*INDEX('PARAMETRI PROJEKTA'!$B$12:$H$12,1,MATCH(Podrobnosti[[#Headers],[ODVETNIK ZA PODJETJA]],Parametri[#Headers],0))*Podrobnosti[[#This Row],[PREDVIDENO DELO]]","v":{"v":0,"d":"0 €"}},{"$f":"INDEX(Parametri[],MATCH(Podrobnosti[[#This Row],[VRSTA PROJEKTA]],Parametri[VRSTA PROJEKTA],0),MATCH(Podrobnosti[[#Headers],[PRAVDAR OBRAMBE]],Parametri[#Headers],0))*INDEX('PARAMETRI PROJEKTA'!$B$12:$H$12,1,MATCH(Podrobnosti[[#Headers],[PRAVDAR OBRAMBE]],Parametri[#Headers],0))*Podrobnosti[[#This Row],[PREDVIDENO DELO]]","v":{"v":0,"d":"0 €"}},{"$f":"INDEX(Parametri[],MATCH(Podrobnosti[[#This Row],[VRSTA PROJEKTA]],Parametri[VRSTA PROJEKTA],0),MATCH(Podrobnosti[[#Headers],[ODVETNIK ZA INTELEKTUALNO LASTNINO]],Parametri[#Headers],0))*INDEX('PARAMETRI PROJEKTA'!$B$12:$H$12,1,MATCH(Podrobnosti[[#Headers],[ODVETNIK ZA INTELEKTUALNO LASTNINO]],Parametri[#Headers],0))*Podrobnosti[[#This Row],[PREDVIDENO DELO]]","v":{"v":24750,"d":"24,750 €"}},{"$f":"INDEX(Parametri[],MATCH(Podrobnosti[[#This Row],[VRSTA PROJEKTA]],Parametri[VRSTA PROJEKTA],0),MATCH(Podrobnosti[[#Headers],[ODVETNIK ZA BANKROT]],Parametri[#Headers],0))*INDEX('PARAMETRI PROJEKTA'!$B$12:$H$12,1,MATCH(Podrobnosti[[#Headers],[ODVETNIK ZA BANKROT]],Parametri[#Headers],0))*Podrobnosti[[#This Row],[PREDVIDENO DELO]]","v":{"v":0,"d":"0 €"}},{"$f":"INDEX(Parametri[],MATCH(Podrobnosti[[#This Row],[VRSTA PROJEKTA]],Parametri[VRSTA PROJEKTA],0),MATCH(Podrobnosti[[#Headers],[SKRBNIŠKO OSEBJE]],Parametri[#Headers],0))*INDEX('PARAMETRI PROJEKTA'!$B$12:$H$12,1,MATCH(Podrobnosti[[#Headers],[SKRBNIŠKO OSEBJE]],Parametri[#Headers],0))*Podrobnosti[[#This Row],[PREDVIDENO DELO]]","v":{"v":5625,"d":"5,625 €"}},{"$f":"INDEX(Parametri[],MATCH(Podrobnosti[[#This Row],[VRSTA PROJEKTA]],Parametri[VRSTA PROJEKTA],0),MATCH(Podrobnosti[[#Headers],[SPLOŠNI PARTNER]],Parametri[#Headers],0))*INDEX('PARAMETRI PROJEKTA'!$B$12:$H$12,1,MATCH(Podrobnosti[[#Headers],[SPLOŠNI PARTNER]],Parametri[#Headers],0))*Podrobnosti[[#This Row],[DEJANSKO DELO]]","v":{"v":5075,"d":"5,075 €"}},{"$f":"INDEX(Parametri[],MATCH(Podrobnosti[[#This Row],[VRSTA PROJEKTA]],Parametri[VRSTA PROJEKTA],0),MATCH(Podrobnosti[[#Headers],[ODVETNIK ZA PODJETJA]],Parametri[#Headers],0))*INDEX('PARAMETRI PROJEKTA'!$B$12:$H$12,1,MATCH(Podrobnosti[[#Headers],[ODVETNIK ZA PODJETJA]],Parametri[#Headers],0))*Podrobnosti[[#This Row],[DEJANSKO DELO]]","v":{"v":0,"d":"0 €"}},{"$f":"INDEX(Parametri[],MATCH(Podrobnosti[[#This Row],[VRSTA PROJEKTA]],Parametri[VRSTA PROJEKTA],0),MATCH(Podrobnosti[[#Headers],[PRAVDAR OBRAMBE]],Parametri[#Headers],0))*INDEX('PARAMETRI PROJEKTA'!$B$12:$H$12,1,MATCH(Podrobnosti[[#Headers],[PRAVDAR OBRAMBE]],Parametri[#Headers],0))*Podrobnosti[[#This Row],[DEJANSKO DELO]]","v":{"v":0,"d":"0 €"}},{"$f":"INDEX(Parametri[],MATCH(Podrobnosti[[#This Row],[VRSTA PROJEKTA]],Parametri[VRSTA PROJEKTA],0),MATCH(Podrobnosti[[#Headers],[ODVETNIK ZA INTELEKTUALNO LASTNINO]],Parametri[#Headers],0))*INDEX('PARAMETRI PROJEKTA'!$B$12:$H$12,1,MATCH(Podrobnosti[[#Headers],[ODVETNIK ZA INTELEKTUALNO LASTNINO]],Parametri[#Headers],0))*Podrobnosti[[#This Row],[DEJANSKO DELO]]","v":{"v":23925,"d":"23,925 €"}},{"$f":"INDEX(Parametri[],MATCH(Podrobnosti[[#This Row],[VRSTA PROJEKTA]],Parametri[VRSTA PROJEKTA],0),MATCH(Podrobnosti[[#Headers],[ODVETNIK ZA BANKROT]],Parametri[#Headers],0))*INDEX('PARAMETRI PROJEKTA'!$B$12:$H$12,1,MATCH(Podrobnosti[[#Headers],[ODVETNIK ZA BANKROT]],Parametri[#Headers],0))*Podrobnosti[[#This Row],[DEJANSKO DELO]]","v":{"v":0,"d":"0 €"}},{"$f":"INDEX(Parametri[],MATCH(Podrobnosti[[#This Row],[VRSTA PROJEKTA]],Parametri[VRSTA PROJEKTA],0),MATCH(Podrobnosti[[#Headers],[SKRBNIŠKO OSEBJE]],Parametri[#Headers],0))*INDEX('PARAMETRI PROJEKTA'!$B$12:$H$12,1,MATCH(Podrobnosti[[#Headers],[SKRBNIŠKO OSEBJE]],Parametri[#Headers],0))*Podrobnosti[[#This Row],[DEJANSKO DELO]]","v":{"v":5437.5,"d":"5,438 €"}}]
[null,"Projekt 5","Tožba zaposlenega",{"$f":"TODAY()+220","v":"2019-09-27"},{"$f":"TODAY()+250","v":"2019-10-27"},{"$f":"TODAY()+230","v":"2019-10-07"},{"$f":"TODAY()+259","v":"2019-11-05"},250,255,{"$f":"DAYS360(Podrobnosti[[#This Row],[PREDVIDEN ZAČETEK]],Podrobnosti[[#This Row],[PREDVIDEN ZAKLJUČEK]],FALSE)","v":30},{"$f":"DAYS360(Podrobnosti[[#This Row],[DEJANSKI ZAČETEK]],Podrobnosti[[#This Row],[DEJANSKI ZAKLJUČEK]],FALSE)","v":28},{"$f":"INDEX(Parametri[],MATCH(Podrobnosti[[#This Row],[VRSTA PROJEKTA]],Parametri[VRSTA PROJEKTA],0),MATCH(Podrobnosti[[#Headers],[SPLOŠNI PARTNER]],Parametri[#Headers],0))*INDEX('PARAMETRI PROJEKTA'!$B$12:$H$12,1,MATCH(Podrobnosti[[#Headers],[SPLOŠNI PARTNER]],Parametri[#Headers],0))*Podrobnosti[[#This Row],[PREDVIDENO DELO]]","v":{"v":17500,"d":"17,500 €"}},{"$f":"INDEX(Parametri[],MATCH(Podrobnosti[[#This Row],[VRSTA PROJEKTA]],Parametri[VRSTA PROJEKTA],0),MATCH(Podrobnosti[[#Headers],[ODVETNIK ZA PODJETJA]],Parametri[#Headers],0))*INDEX('PARAMETRI PROJEKTA'!$B$12:$H$12,1,MATCH(Podrobnosti[[#Headers],[ODVETNIK ZA PODJETJA]],Parametri[#Headers],0))*Podrobnosti[[#This Row],[PREDVIDENO DELO]]","v":{"v":6250,"d":"6,250 €"}},{"$f":"INDEX(Parametri[],MATCH(Podrobnosti[[#This Row],[VRSTA PROJEKTA]],Parametri[VRSTA PROJEKTA],0),MATCH(Podrobnosti[[#Headers],[PRAVDAR OBRAMBE]],Parametri[#Headers],0))*INDEX('PARAMETRI PROJEKTA'!$B$12:$H$12,1,MATCH(Podrobnosti[[#Headers],[PRAVDAR OBRAMBE]],Parametri[#Headers],0))*Podrobnosti[[#This Row],[PREDVIDENO DELO]]","v":{"v":30000,"d":"30,000 €"}},{"$f":"INDEX(Parametri[],MATCH(Podrobnosti[[#This Row],[VRSTA PROJEKTA]],Parametri[VRSTA PROJEKTA],0),MATCH(Podrobnosti[[#Headers],[ODVETNIK ZA INTELEKTUALNO LASTNINO]],Parametri[#Headers],0))*INDEX('PARAMETRI PROJEKTA'!$B$12:$H$12,1,MATCH(Podrobnosti[[#Headers],[ODVETNIK ZA INTELEKTUALNO LASTNINO]],Parametri[#Headers],0))*Podrobnosti[[#This Row],[PREDVIDENO DELO]]","v":{"v":0,"d":"0 €"}},{"$f":"INDEX(Parametri[],MATCH(Podrobnosti[[#This Row],[VRSTA PROJEKTA]],Parametri[VRSTA PROJEKTA],0),MATCH(Podrobnosti[[#Headers],[ODVETNIK ZA BANKROT]],Parametri[#Headers],0))*INDEX('PARAMETRI PROJEKTA'!$B$12:$H$12,1,MATCH(Podrobnosti[[#Headers],[ODVETNIK ZA BANKROT]],Parametri[#Headers],0))*Podrobnosti[[#This Row],[PREDVIDENO DELO]]","v":{"v":0,"d":"0 €"}},{"$f":"INDEX(Parametri[],MATCH(Podrobnosti[[#This Row],[VRSTA PROJEKTA]],Parametri[VRSTA PROJEKTA],0),MATCH(Podrobnosti[[#Headers],[SKRBNIŠKO OSEBJE]],Parametri[#Headers],0))*INDEX('PARAMETRI PROJEKTA'!$B$12:$H$12,1,MATCH(Podrobnosti[[#Headers],[SKRBNIŠKO OSEBJE]],Parametri[#Headers],0))*Podrobnosti[[#This Row],[PREDVIDENO DELO]]","v":{"v":9375,"d":"9,375 €"}},{"$f":"INDEX(Parametri[],MATCH(Podrobnosti[[#This Row],[VRSTA PROJEKTA]],Parametri[VRSTA PROJEKTA],0),MATCH(Podrobnosti[[#Headers],[SPLOŠNI PARTNER]],Parametri[#Headers],0))*INDEX('PARAMETRI PROJEKTA'!$B$12:$H$12,1,MATCH(Podrobnosti[[#Headers],[SPLOŠNI PARTNER]],Parametri[#Headers],0))*Podrobnosti[[#This Row],[DEJANSKO DELO]]","v":{"v":17850,"d":"17,850 €"}},{"$f":"INDEX(Parametri[],MATCH(Podrobnosti[[#This Row],[VRSTA PROJEKTA]],Parametri[VRSTA PROJEKTA],0),MATCH(Podrobnosti[[#Headers],[ODVETNIK ZA PODJETJA]],Parametri[#Headers],0))*INDEX('PARAMETRI PROJEKTA'!$B$12:$H$12,1,MATCH(Podrobnosti[[#Headers],[ODVETNIK ZA PODJETJA]],Parametri[#Headers],0))*Podrobnosti[[#This Row],[DEJANSKO DELO]]","v":{"v":6375,"d":"6,375 €"}},{"$f":"INDEX(Parametri[],MATCH(Podrobnosti[[#This Row],[VRSTA PROJEKTA]],Parametri[VRSTA PROJEKTA],0),MATCH(Podrobnosti[[#Headers],[PRAVDAR OBRAMBE]],Parametri[#Headers],0))*INDEX('PARAMETRI PROJEKTA'!$B$12:$H$12,1,MATCH(Podrobnosti[[#Headers],[PRAVDAR OBRAMBE]],Parametri[#Headers],0))*Podrobnosti[[#This Row],[DEJANSKO DELO]]","v":{"v":30600,"d":"30,600 €"}},{"$f":"INDEX(Parametri[],MATCH(Podrobnosti[[#This Row],[VRSTA PROJEKTA]],Parametri[VRSTA PROJEKTA],0),MATCH(Podrobnosti[[#Headers],[ODVETNIK ZA INTELEKTUALNO LASTNINO]],Parametri[#Headers],0))*INDEX('PARAMETRI PROJEKTA'!$B$12:$H$12,1,MATCH(Podrobnosti[[#Headers],[ODVETNIK ZA INTELEKTUALNO LASTNINO]],Parametri[#Headers],0))*Podrobnosti[[#This Row],[DEJANSKO DELO]]","v":{"v":0,"d":"0 €"}},{"$f":"INDEX(Parametri[],MATCH(Podrobnosti[[#This Row],[VRSTA PROJEKTA]],Parametri[VRSTA PROJEKTA],0),MATCH(Podrobnosti[[#Headers],[ODVETNIK ZA BANKROT]],Parametri[#Headers],0))*INDEX('PARAMETRI PROJEKTA'!$B$12:$H$12,1,MATCH(Podrobnosti[[#Headers],[ODVETNIK ZA BANKROT]],Parametri[#Headers],0))*Podrobnosti[[#This Row],[DEJANSKO DELO]]","v":{"v":0,"d":"0 €"}},{"$f":"INDEX(Parametri[],MATCH(Podrobnosti[[#This Row],[VRSTA PROJEKTA]],Parametri[VRSTA PROJEKTA],0),MATCH(Podrobnosti[[#Headers],[SKRBNIŠKO OSEBJE]],Parametri[#Headers],0))*INDEX('PARAMETRI PROJEKTA'!$B$12:$H$12,1,MATCH(Podrobnosti[[#Headers],[SKRBNIŠKO OSEBJE]],Parametri[#Headers],0))*Podrobnosti[[#This Row],[DEJANSKO DELO]]","v":{"v":9562.5,"d":"9,563 €"}}]
[null,"Vsota",{"$nulls":5},{"$f":"SUBTOTAL(109,Podrobnosti[PREDVIDENO DELO])","v":1500},{"$f":"SUBTOTAL(109,Podrobnosti[DEJANSKO DELO])","v":1510},{"$f":"SUBTOTAL(109,Podrobnosti[PREDVIDENO TRAJANJE])","v":190},{"$f":"SUBTOTAL(109,Podrobnosti[DEJANSKO TRAJANJE])","v":170}]

{"sheet":"SKUPNE VRENDOSTI PROJEKTA","index":3,"n_rows":11,"n_cols":16,"rows_kept":11,"merged":[[3,2,3,7],[3,8,3,13],[3,15,14,19]]}
["Na tem delovnem listu dobite skupne vrendosti projekta. Ime podjetja se samodejno posodobi v celici na desni strani. Navodila so v celicah v tem stolpcu. Puščica dol za začetek dela.",{"$f":"'PARAMETRI PROJEKTA'!B1","v":"Ime podjetja"}]
["Naslov tega delovnega lista je v celici na desni strani.",{"$f":"'PARAMETRI PROJEKTA'!B2","v":"Načrtovanje projekta za pravna podjetja"}]
["Sporočilo o zaupnosti je v celici na desni.",{"$f":"'PARAMETRI PROJEKTA'!B3","v":"Ime podjetja – zaupno"}]
["Oznaka »Predvideni« je v celici C4, oznaka »Dejansko« je v celici I4, navodila pa so v celici P4.",null,"PREDVIDENI",{"$nulls":5},"DEJANSKO",{"$nulls":6},"INFORMACIJE: \nTa vrtilna tabela ne bo osvežena samodejno.  Če jo želite osvežiti, jo izberite (poljubno celico v vrtilni tabeli), nato pa na zavihku traku »ORODJA VRTILNE TABELE | ANALIZA« izberite »Osveži«.  Ali pa pritisnite SHIFT + F10 tako, da izberete vrtilno tabelo in izberete »Osveži«."]
["Vrtilna tabela z začetkom v celici na desni je samodejno posodobljena.","IME PROJEKTA","SPLOŠNI PARTNER  ","PODJETJE","PRAVDAR OBRAMBE  ","INTELEKTUALNA LASTNINA","BANKROT","SKRBNIŠKO OSEBJE  ","SPLOŠNI PARTNER ","PODJETJE ","PRAVDAR OBRAMBE ","BANKROT ","INTELEKTUALNA LASTNINA ","SKRBNIŠKO OSEBJE "]
[null,"Projekt 1",{"v":7000,"d":"7,000.00 €"},{"v":20000,"d":"20,000.00 €"},{"v":0,"d":"0.00 €"},{"v":0,"d":"0.00 €"},{"v":0,"d":"0.00 €"},{"v":12500,"d":"12,500.00 €"},{"v":7700,"d":"7,700.00 €"},{"v":22000,"d":"22,000.00 €"},{"v":0,"d":"0.00 €"},{"v":0,"d":"0.00 €"},{"v":0,"d":"0.00 €"},{"v":13750,"d":"13,750.00 €"}]
[null,"Projekt 2",{"v":14000,"d":"14,000.00 €"},{"v":40000,"d":"40,000.00 €"},{"v":0,"d":"0.00 €"},{"v":11000,"d":"11,000.00 €"},{"v":0,"d":"0.00 €"},{"v":20000,"d":"20,000.00 €"},{"v":13650,"d":"13,650.00 €"},{"v":39000,"d":"39,000.00 €"},{"v":0,"d":"0.00 €"},{"v":10725,"d":"10,725.00 €"},{"v":0,"d":"0.00 €"},{"v":19500,"d":"19,500.00 €"}]
[null,"Projekt 3",{"v":35000,"d":"35,000.00 €"},{"v":0,"d":"0.00 €"},{"v":75000,"d":"75,000.00 €"},{"v":0,"d":"0.00 €"},{"v":0,"d":"0.00 €"},{"v":18750,"d":"18,750.00 €"},{"v":35000,"d":"35,000.00 €"},{"v":0,"d":"0.00 €"},{"v":75000,"d":"75,000.00 €"},{"v":0,"d":"0.00 €"},{"v":0,"d":"0.00 €"},{"v":18750,"d":"18,750.00 €"}]
[null,"Projekt 4",{"v":5250,"d":"5,250.00 €"},{"v":0,"d":"0.00 €"},{"v":0,"d":"0.00 €"},{"v":24750,"d":"24,750.00 €"},{"v":0,"d":"0.00 €"},{"v":5625,"d":"5,625.00 €"},{"v":5075,"d":"5,075.00 €"},{"v":0,"d":"0.00 €"},{"v":0,"d":"0.00 €"},{"v":23925,"d":"23,925.00 €"},{"v":0,"d":"0.00 €"},{"v":5437.5,"d":"5,437.50 €"}]
[null,"Projekt 5",{"v":17500,"d":"17,500.00 €"},{"v":6250,"d":"6,250.00 €"},{"v":30000,"d":"30,000.00 €"},{"v":0,"d":"0.00 €"},{"v":0,"d":"0.00 €"},{"v":9375,"d":"9,375.00 €"},{"v":17850,"d":"17,850.00 €"},{"v":6375,"d":"6,375.00 €"},{"v":30600,"d":"30,600.00 €"},{"v":0,"d":"0.00 €"},{"v":0,"d":"0.00 €"},{"v":9562.5,"d":"9,562.50 €"}]
[null,"Skupna vsota",{"v":78750,"d":"78,750.00 €"},{"v":66250,"d":"66,250.00 €"},{"v":105000,"d":"105,000.00 €"},{"v":35750,"d":"35,750.00 €"},{"v":0,"d":"0.00 €"},{"v":66250,"d":"66,250.00 €"},{"v":79275,"d":"79,275.00 €"},{"v":67375,"d":"67,375.00 €"},{"v":105600,"d":"105,600.00 €"},{"v":34650,"d":"34,650.00 €"},{"v":0,"d":"0.00 €"},{"v":67000,"d":"67,000.00 €"}]